[Event "69th RUS-ch Women Higher League 2019"]
[Site "Yaroslavl"]
[Date "2019.06.29"]
[Round "3.10"]
[White "Voit, Daria"]
[Black "Schepetkova, Margarita"]
[Result "1-0"]
[ECO "D11"]
[WhiteElo "2339"]
[BlackElo "2241"]
[Annotator "NA"]
[PlyCount "95"]
[EventDate "2019.06.27"]
[EventType "swiss"]
[EventCountry "RUS"]
[SourceTitle "playchess.com"]
[Source "ChessBase"]
[SourceQuality "1"]
[TimeControl "40/5400+30:1800+30"]

1. d4 {[%emt 0:00:00]} d5 {[%emt 0:00:00]} 2. c4 {[%emt 0:00:00]} c6 {[%emt 0:00:00]} 3. Nf3 {[%emt 0:00:00]} Nf6 {[%emt 0:00:00]} 4. e3 {[%emt 0:00:13]} Bg4 {[%emt 0:00:34]} 5. h3 {[%emt 0:00:02]} Bh5 {[%emt 0:00:21]} 6. g4 {[%emt 0:00:03]} Bg6 {[%emt 0:00:05]} 7. Ne5 {[%emt 0:00:07]} e6 {[%emt 0:00:17]} 8. Nxg6 {[%emt 0:01:13]} hxg6 {[%emt 0:00:08]} 9. Nd2 {[%emt 0:00:12]} Nbd7 {[%emt 0:00:20]} 10. Bg2 {[%emt 0:00:05]} g5 {[%emt 0:01:33]} 11. O-O {[%emt 0:00:21]} Bd6 {[%emt 0:01:33]} 12. Re1 {[%emt 0:00:08]} Nf8 {[%emt 0:02:32]} 13. Qb3 {[%emt 0:05:15]} Qb6 {[%emt 0:00:45]} 14. e4 {[%emt 0:01:09]} dxe4 {[%emt 0:18:40]} 15. Nxe4 {[%emt 0:00:59]} Nxe4 {[%emt 0:01:35]} 16. Rxe4 {[%emt 0:01:07]} Be7 {[%emt 0:02:43]} 17. Be3 {[%emt 0:20:59]} Ng6 {[%emt 0:19:47]} 18. d5 {[%emt 0:03:25]} Qxb3 {[%emt 0:00:15]} 19. axb3 {[%emt 0:00:03]} cxd5 {[%emt 0:00:26]} 20. cxd5 {[%emt 0:00:05]} exd5 {[%emt 0:00:56]} 21. Rea4 {[%emt 0:02:08]} Rd8 {[%emt 0:04:55]} 22. Rxa7 {[%emt 0:07:55]} d4 {[%emt 0:00:25]} 23. Bd2 {[%emt 0:00:02]} Nf4 {[%emt 0:02:57]} 24. Rxb7 {[%emt 0:02:48]} Rh6 {[%emt 0:07:43]} 25. Raa7 {[%emt 0:10:59]} Re6 {[%emt 0:01:40]} 26. Bc6+ {[%emt 0:01:20]} Kf8 {[%emt 0:00:31]} 27. Rxe7 {[%emt 0:00:35]} Rxe7 {[%emt 0:00:04]} 28. Bb4 {[%emt 0:00:07]} Ng6 {[%emt 0:00:16]} 29. Bb5 {[%emt 0:11:56]} Rb8 {[%emt 0:05:21]} 30. Bd6 {[%emt 0:17:11]} Rd8 {[%emt 0:00:05]} 31. Bc5 {[%emt 0:01:05]} Rb8 {[%emt 0:05:33]} 32. Bc4 {[%emt 0:03:07]} Ke8 {[%emt 0:04:14]} 33. Bxe7 {[%emt 0:00:06]} Nxe7 {[%emt 0:00:06]} 34. Kf1 {[%emt 0:00:13]} f6 {[%emt 0:01:55]} 35. Ke2 {[%emt 0:00:15]} Kf8 {[%emt 0:03:22]} 36. Kd2 {[%emt 0:09:26]} Rd8 {[%emt 0:02:07]} 37. b4 {[%emt 0:02:45]} Nc6 {[%emt 0:05:16]} 38. Rf7+ {[%emt 0:00:08]} Ke8 {[%emt 0:00:02]} 39. Rxg7 {[%emt 0:00:29]} Ne5 {[%emt 0:00:02]} 40. b3 {[%emt 0:00:00]} Rd6 {[%emt 0:00:00]} 41. b5 {[%emt 0:01:02]} d3 {[%emt 0:00:41]} 42. Rc7 {[%emt 0:02:57]} Nf3+ {[%emt 0:13:55]} 43. Kd1 {[%emt 0:02:49]} Nd4 {[%emt 0:00:11]} 44. Rc5 {[%emt 0:05:10]} Ne2 {[%emt 0:00:17]} 45. Kd2 {[%emt 0:00:17]} Nf4 {[%emt 0:00:11]} 46. Rc6 {[%emt 0:01:08]} Rd4 {[%emt 0:01:16]} 47. b6 {[%emt 0:01:04]} Kd7 {[%emt 0:00:03]} 48. b7 {[%emt 0:00:22]} 1-0

[Event "69th RUS-ch Women Higher League 2019"]
[Site "Yaroslavl"]
[Date "2019.06.29"]
[Round "3.11"]
[White "Solozhenkina, Elizaveta"]
[Black "Bykova, Anastasia"]
[Result "1/2-1/2"]
[ECO "B17"]
[WhiteElo "2324"]
[BlackElo "2229"]
[Annotator "NA"]
[PlyCount "93"]
[EventDate "2019.06.27"]
[EventType "swiss"]
[EventCountry "RUS"]
[SourceTitle "playchess.com"]
[Source "ChessBase"]
[SourceQuality "1"]
[TimeControl "40/5400+30:1800+30"]

1. e4 {[%emt 0:00:00]} c6 {[%emt 0:00:00]} 2. d4 {[%emt 0:00:00]} d5 {[%emt 0:00:00]} 3. Nc3 {[%emt 0:00:00]} dxe4 {[%emt 0:00:00]} 4. Nxe4 {[%emt 0:00:00]} Nd7 {[%emt 0:00:00]} 5. Nf3 {[%emt 0:00:12]} Ngf6 {[%emt 0:00:00]} 6. Nxf6+ {[%emt 0:00:07]} Nxf6 {[%emt 0:00:03]} 7. c3 {[%emt 0:00:12]} Bg4 {[%emt 0:00:06]} 8. h3 {[%emt 0:00:17]} Bxf3 {[%emt 0:00:06]} 9. Qxf3 {[%emt 0:00:05]} Qd5 {[%emt 0:00:08]} 10. Be2 {[%emt 0:00:06]} Qxf3 {[%emt 0:00:05]} 11. Bxf3 {[%emt 0:00:05]} e6 {[%emt 0:00:04]} 12. O-O {[%emt 0:03:39]} Be7 {[%emt 0:01:35]} 13. Re1 {[%emt 0:03:48]} O-O {[%emt 0:03:14]} 14. Bf4 {[%emt 0:07:35]} Rfd8 {[%emt 0:04:15]} 15. Rad1 {[%emt 0:11:34]} Rd7 {[%emt 0:04:32]} 16. Be5 {[%emt 0:09:53]} a5 {[%emt 0:02:31]} 17. a3 {[%emt 0:02:31]} Nd5 {[%emt 0:11:36]} 18. c4 {[%emt 0:15:37]} Nb6 {[%emt 0:00:06]} 19. Be2 {[%emt 0:02:16]} Rad8 {[%emt 0:05:29]} 20. Rb1 {[%emt 0:02:48]} Nc8 {[%emt 0:07:44]} 21. Bg4 {[%emt 0:01:35]} g6 {[%emt 0:18:24]} 22. g3 {[%emt 0:14:33]} h5 {[%emt 0:08:18]} 23. Be2 {[%emt 0:01:07]} f6 {[%emt 0:13:52]} 24. Bf4 {[%emt 0:00:27]} Bd6 {[%emt 0:09:38]} 25. Bd2 {[%emt 0:02:43]} Bc7 {[%emt 0:00:15]} 26. Bc3 {[%emt 0:00:16]} Ne7 {[%emt 0:01:34]} 27. g4 {[%emt 0:07:34]} h4 {[%emt 0:03:23]} 28. b4 {[%emt 0:06:11]} axb4 {[%emt 0:00:14]} 29. axb4 {[%emt 0:01:18]} Kf7 {[%emt 0:01:54]} 30. b5 {[%emt 0:00:32]} g5 {[%emt 0:01:18]} 31. Bf3 {[%emt 0:01:57]} Bb8 {[%emt 0:02:48]} 32. bxc6 {[%emt 0:03:14]} bxc6 {[%emt 0:00:03]} 33. Rb2 {[%emt 0:00:13]} Ba7 {[%emt 0:01:12]} 34. Rbe2 {[%emt 0:00:13]} Bxd4 {[%emt 0:00:26]} 35. Bxd4 {[%emt 0:00:08]} Rxd4 {[%emt 0:00:04]} 36. Rxe6 {[%emt 0:00:03]} Ng6 {[%emt 0:00:27]} 37. Rxc6 {[%emt 0:02:16]} Ne5 {[%emt 0:00:05]} 38. Rc7+ {[%emt 0:00:03]} Kf8 {[%emt 0:01:50]} 39. Bd5 {[%emt 0:03:11]} R4xd5 {[%emt 0:00:33]} 40. cxd5 {[%emt 0:00:00]} Nf3+ {[%emt 0:00:00]} 41. Kf1 {[%emt 0:00:14]} Nxe1 {[%emt 0:00:15]} 42. Kxe1 {[%emt 0:00:03]} Rxd5 {[%emt 0:00:04]} 43. Ke2 {[%emt 0:01:24]} Re5+ {[%emt 0:06:37]} 44. Kf3 {[%emt 0:02:39]} Re6 {[%emt 0:02:27]} 45. Ra7 {[%emt 0:02:12]} Re5 {[%emt 0:00:27]} 46. Rb7 {[%emt 0:01:20]} Re4 47. Kxe4 1/2-1/2

[Event "69th RUS-ch Women Higher League 2019"]
[Site "Yaroslavl"]
[Date "2019.06.29"]
[Round "3.12"]
[White "Paramzina, Anastasya"]
[Black "Diakonova, Ekaterina"]
[Result "1/2-1/2"]
[ECO "B11"]
[WhiteElo "2300"]
[BlackElo "2196"]
[Annotator "NA"]
[PlyCount "82"]
[EventDate "2019.06.27"]
[EventType "swiss"]
[EventCountry "RUS"]
[SourceTitle "playchess.com"]
[Source "ChessBase"]
[SourceQuality "1"]
[TimeControl "40/5400+30:1800+30"]

1. e4 {[%emt 0:00:00]} c6 {[%emt 0:00:00]} 2. Nc3 {[%emt 0:00:00]} d5 {[%emt 0:00:00]} 3. Nf3 {[%emt 0:00:00]} Bg4 {[%emt 0:00:00]} 4. h3 {[%emt 0:00:00]} Bxf3 {[%emt 0:00:00]} 5. Qxf3 {[%emt 0:00:00]} e6 {[%emt 0:00:00]} 6. d3 {[%emt 0:00:24]} Nd7 {[%emt 0:00:19]} 7. Bd2 {[%emt 0:00:28]} g6 {[%emt 0:03:11]} 8. g4 {[%emt 0:02:56]} Bg7 {[%emt 0:02:31]} 9. h4 {[%emt 0:02:35]} h6 {[%emt 0:03:37]} 10. Qg3 {[%emt 0:01:48]} Ne7 {[%emt 0:12:30]} 11. Be2 {[%emt 0:13:30]} Qb6 {[%emt 0:05:35]} 12. O-O-O {[%emt 0:03:23]} Nc5 {[%emt 0:06:38]} 13. e5 {[%emt 0:02:57]} d4 {[%emt 0:02:23]} 14. Ne4 {[%emt 0:00:14]} Nxe4 {[%emt 0:00:42]} 15. dxe4 {[%emt 0:00:06]} O-O-O {[%emt 0:06:09]} 16. f4 {[%emt 0:02:02]} Qc7 {[%emt 0:07:19]} 17. Qa3 {[%emt 0:03:00]} b6 {[%emt 0:05:11]} 18. g5 {[%emt 0:02:32]} h5 {[%emt 0:03:21]} 19. c3 {[%emt 0:07:21]} Kb8 {[%emt 0:07:13]} 20. Kb1 {[%emt 0:23:31]} c5 {[%emt 0:01:34]} 21. cxd4 {[%emt 0:15:36]} Rxd4 {[%emt 0:00:05]} 22. Be3 {[%emt 0:00:03]} Rxd1+ {[%emt 0:01:36]} 23. Rxd1 {[%emt 0:00:14]} Rd8 {[%emt 0:00:03]} 24. Qa4 {[%emt 0:00:45]} Rxd1+ {[%emt 0:04:43]} 25. Qxd1 {[%emt 0:00:22]} Nc6 {[%emt 0:06:24]} 26. Qd6 {[%emt 0:03:29]} Qxd6 {[%emt 0:11:33]} 27. exd6 {[%emt 0:00:25]} Bd4 {[%emt 0:00:02]} 28. Bb5 {[%emt 0:11:17]} Bxe3 {[%emt 0:00:06]} 29. Bxc6 {[%emt 0:00:03]} Bxf4 {[%emt 0:00:07]} 30. Be8 {[%emt 0:00:02]} Bxd6 {[%emt 0:00:18]} 31. Bxf7 {[%emt 0:00:04]} Bg3 {[%emt 0:00:04]} 32. Bxg6 {[%emt 0:01:19]} Bxh4 {[%emt 0:00:06]} 33. Bxh5 {[%emt 0:00:07]} Bxg5 {[%emt 0:00:05]} 34. Bf7 {[%emt 0:00:06]} e5 {[%emt 0:00:36]} 35. a4 {[%emt 0:00:10]} Kc7 {[%emt 0:01:27]} 36. Kc2 {[%emt 0:00:35]} Be3 {[%emt 0:00:20]} 37. Kd3 {[%emt 0:00:15]} Bd4 {[%emt 0:00:05]} 38. b3 {[%emt 0:00:02]} a5 {[%emt 0:00:12]} 39. Bg8 {[%emt 0:00:20]} Ba1 {[%emt 0:00:06]} 40. Bf7 {[%emt 0:00:00]} Bd4 {[%emt 0:00:00]} 41. Bg8 {[%emt 0:00:07]} Ba1 {[%emt 0:00:06]} 1/2-1/2

[Event "69th RUS-ch Women Higher League 2019"]
[Site "Yaroslavl"]
[Date "2019.06.29"]
[Round "3.13"]
[White "Maletina, Tatiana"]
[Black "Utiatskaja, Irina"]
[Result "1/2-1/2"]
[ECO "E81"]
[WhiteElo "2273"]
[BlackElo "2192"]
[Annotator "NA"]
[PlyCount "126"]
[EventDate "2019.06.27"]
[EventType "swiss"]
[EventCountry "RUS"]
[SourceTitle "playchess.com"]
[Source "ChessBase"]
[SourceQuality "1"]
[TimeControl "40/5400+30:1800+30"]

1. d4 {[%emt 0:00:00]} Nf6 {[%emt 0:00:00]} 2. c4 {[%emt 0:00:00]} g6 {[%emt 0:00:00]} 3. f3 {[%emt 0:00:00]} Bg7 {[%emt 0:00:03]} 4. e4 {[%emt 0:00:00]} d6 {[%emt 0:00:26]} 5. Nc3 {[%emt 0:00:00]} O-O {[%emt 0:00:06]} 6. Be3 {[%emt 0:00:00]} c5 {[%emt 0:00:39]} 7. Nge2 {[%emt 0:00:01]} Nc6 {[%emt 0:00:37]} 8. d5 {[%emt 0:00:07]} Ne5 {[%emt 0:00:12]} 9. Ng3 {[%emt 0:00:05]} h5 {[%emt 0:00:35]} 10. Be2 {[%emt 0:00:15]} h4 {[%emt 0:00:57]} 11. Nf1 {[%emt 0:00:06]} e6 {[%emt 0:01:21]} 12. h3 {[%emt 0:01:05]} exd5 {[%emt 0:00:34]} 13. cxd5 {[%emt 0:00:05]} b5 {[%emt 0:01:50]} 14. Nxb5 {[%emt 0:01:59]} Rb8 {[%emt 0:00:36]} 15. Nd2 {[%emt 0:00:05]} Nh5 {[%emt 0:00:32]} 16. O-O {[%emt 0:07:25]} Ng3 {[%emt 0:00:39]} 17. f4 {[%emt 0:12:10]} Bh6 {[%emt 0:01:48]} 18. Rf2 {[%emt 0:00:05]} f5 {[%emt 0:13:54]} 19. Nf1 {[%emt 0:10:12]} Nxe4 {[%emt 0:44:47]} 20. fxe5 {[%emt 0:00:36]} Bxe3 {[%emt 0:00:26]} 21. Nxe3 {[%emt 0:00:06]} Nxf2 {[%emt 0:00:03]} 22. Kxf2 {[%emt 0:00:05]} Qg5 {[%emt 0:03:13]} 23. Nf1 {[%emt 0:02:53]} Qf4+ {[%emt 0:08:31]} 24. Kg1 {[%emt 0:00:09]} Qxe5 {[%emt 0:00:06]} 25. Qc2 {[%emt 0:06:17]} Re8 {[%emt 0:03:18]} 26. Nc3 {[%emt 0:02:23]} Qd4+ {[%emt 0:04:40]} 27. Kh1 {[%emt 0:00:06]} Qf2 {[%emt 0:00:12]} 28. Rc1 {[%emt 0:04:33]} Bd7 {[%emt 0:08:08]} 29. b3 {[%emt 0:03:45]} Re7 {[%emt 0:01:23]} 30. Bc4 {[%emt 0:00:35]} Qxc2 {[%emt 0:01:21]} 31. Rxc2 {[%emt 0:00:04]} Re1 {[%emt 0:00:20]} 32. Kg1 {[%emt 0:00:04]} Rbe8 {[%emt 0:01:25]} 33. Kf2 {[%emt 0:14:16]} g5 {[%emt 0:01:01]} 34. Be2 {[%emt 0:04:39]} Ra1 {[%emt 0:00:30]} 35. Ne3 {[%emt 0:00:39]} Rh1 {[%emt 0:01:11]} 36. Nc4 {[%emt 0:00:20]} g4 {[%emt 0:00:24]} 37. Nxd6 Rf8 {[%emt 0:00:21]} 38. Nc4 {[%emt 0:05:23]} gxh3 {[%emt 0:00:12]} 39. gxh3 {[%emt 0:00:03]} f4 {[%emt 0:00:26]} 40. Ne5 {[%emt 0:00:00]} Bxh3 {[%emt 0:00:00]} 41. Nf3 {[%emt 0:12:42]} Kh8 {[%emt 0:07:39]} 42. Ne4 {[%emt 0:12:54]} Bf5 {[%emt 0:07:50]} 43. Rc4 {[%emt 0:00:32]} h3 {[%emt 0:06:37]} 44. Neg5 {[%emt 0:00:35]} h2 {[%emt 0:01:01]} 45. Rxf4 {[%emt 0:06:12]} Kg7 {[%emt 0:03:17]} 46. Kg2 {[%emt 0:24:47]} Ra1 {[%emt 0:00:11]} 47. Nxh2 {[%emt 0:00:07]} Rxa2 48. Rf2 {[%emt 0:00:03]} Kh6 {[%emt 0:05:20]} 49. Ne6 {[%emt 0:05:05]} Be4+ {[%emt 0:02:48]} 50. Kg3 {[%emt 0:00:10]} Rxf2 {[%emt 0:01:36]} 51. Kxf2 {[%emt 0:00:03]} Bd3 {[%emt 0:01:02]} 52. Ng4+ {[%emt 0:00:36]} Kh7 {[%emt 0:00:04]} 53. Nf4 {[%emt 0:00:43]} Bxe2 {[%emt 0:00:19]} 54. Nxe2 {[%emt 0:00:04]} Kg7 {[%emt 0:00:28]} 55. d6 {[%emt 0:01:45]} Kf7 {[%emt 0:01:16]} 56. Ne5+ Ke6 {[%emt 0:00:34]} 57. Nc4 {[%emt 0:00:53]} a5 {[%emt 0:00:55]} 58. Ke3 {[%emt 0:00:20]} a4 {[%emt 0:00:13]} 59. Nf4+ {[%emt 0:00:27]} Kd7 {[%emt 0:00:10]} 60. Nd3 {[%emt 0:00:52]} axb3 {[%emt 0:00:11]} 61. Nxc5+ {[%emt 0:00:08]} Kc6 {[%emt 0:01:07]} 62. Nxb3 {[%emt 0:00:11]} Ra3 {[%emt 0:00:35]} 63. Nxa3 {[%emt 0:01:02]} Kxd6 {[%emt 0:00:03]} 1/2-1/2

[Event "69th RUS-ch Women Higher League 2019"]
[Site "Yaroslavl"]
[Date "2019.06.29"]
[Round "3.14"]
[White "Protopopova, Anastasiya"]
[Black "Mukhina, Jana"]
[Result "1-0"]
[ECO "E73"]
[WhiteElo "2272"]
[BlackElo "2090"]
[Annotator "NA"]
[PlyCount "107"]
[EventDate "2019.06.27"]
[EventType "swiss"]
[EventCountry "RUS"]
[SourceTitle "playchess.com"]
[Source "ChessBase"]
[SourceQuality "1"]
[TimeControl "40/5400+30:1800+30"]

1. d4 {[%emt 0:00:00]} Nf6 {[%emt 0:00:00]} 2. c4 {[%emt 0:00:00]} g6 {[%emt 0:00:00]} 3. Nc3 {[%emt 0:00:00]} Bg7 {[%emt 0:00:00]} 4. e4 {[%emt 0:00:00]} d6 {[%emt 0:00:00]} 5. Be2 {[%emt 0:00:00]} O-O {[%emt 0:00:02]} 6. Bg5 {[%emt 0:00:06]} Na6 {[%emt 0:00:09]} 7. Qd2 {[%emt 0:02:26]} e5 {[%emt 0:02:06]} 8. d5 {[%emt 0:00:17]} c6 {[%emt 0:00:54]} 9. Bd1 {[%emt 0:11:46]} Qa5 {[%emt 0:08:54]} 10. Bc2 {[%emt 0:18:01]} Qb4 {[%emt 0:16:36]} 11. b3 {[%emt 0:07:46]} b5 {[%emt 0:05:33]} 12. a3 {[%emt 0:08:18]} Qa5 {[%emt 0:02:20]} 13. Ra2 {[%emt 0:05:19]} bxc4 {[%emt 0:04:16]} 14. b4 {[%emt 0:01:45]} Qb6 {[%emt 0:06:59]} 15. dxc6 {[%emt 0:02:54]} Be6 {[%emt 0:06:22]} 16. Nge2 {[%emt 0:06:03]} Nb8 {[%emt 0:04:19]} 17. b5 {[%emt 0:08:52]} a6 {[%emt 0:01:27]} 18. Be3 {[%emt 0:01:18]} Qc7 {[%emt 0:09:50]} 19. a4 {[%emt 0:02:22]} axb5 {[%emt 0:00:45]} 20. axb5 {[%emt 0:00:13]} Rxa2 {[%emt 0:00:04]} 21. Nxa2 {[%emt 0:00:05]} d5 {[%emt 0:02:34]} 22. exd5 {[%emt 0:00:07]} Nxd5 {[%emt 0:00:09]} 23. O-O {[%emt 0:01:21]} Rd8 {[%emt 0:02:15]} 24. Rd1 {[%emt 0:02:25]} Bf6 {[%emt 0:01:24]} 25. Nac3 {[%emt 0:13:56]} Be7 {[%emt 0:05:26]} 26. Ra1 {[%emt 0:02:03]} Nb4 {[%emt 0:07:06]} 27. Qc1 {[%emt 0:00:13]} N8xc6 {[%emt 0:00:38]} 28. bxc6 {[%emt 0:00:10]} Nxc6 {[%emt 0:00:39]} 29. Be4 {[%emt 0:01:34]} Nd4 {[%emt 0:00:52]} 30. Ra6 {[%emt 0:01:19]} Qd7 {[%emt 0:03:40]} 31. h3 {[%emt 0:02:21]} f5 {[%emt 0:01:58]} 32. Bc2 {[%emt 0:01:02]} Qc8 {[%emt 0:03:31]} 33. Ra5 {[%emt 0:01:00]} f4 {[%emt 0:00:44]} 34. Bd2 {[%emt 0:00:54]} Bxh3 {[%emt 0:04:45]} 35. Be4 {[%emt 0:00:53]} Bb4 {[%emt 0:00:29]} 36. Ra8 {[%emt 0:00:31]} Qd7 {[%emt 0:00:37]} 37. Rxd8+ {[%emt 0:00:09]} Qxd8 {[%emt 0:00:01]} 38. gxh3 {[%emt 0:00:35]} Nxe2+ {[%emt 0:00:49]} 39. Nxe2 {[%emt 0:00:04]} Bxd2 {[%emt 0:00:12]} 40. Qxc4+ {[%emt 0:00:00]} Kg7 {[%emt 0:00:00]} 41. Qe6 {[%emt 0:07:35]} Qg5+ {[%emt 0:04:42]} 42. Kf1 {[%emt 0:01:13]} Bb4 {[%emt 0:02:29]} 43. Ng1 {[%emt 0:02:28]} Qe7 {[%emt 0:02:11]} 44. Qc6 {[%emt 0:03:38]} Qc5 {[%emt 0:02:08]} 45. Qd7+ {[%emt 0:01:31]} Qe7 {[%emt 0:00:07]} 46. Qg4 {[%emt 0:01:23]} Qc5 {[%emt 0:01:57]} 47. Kg2 {[%emt 0:01:29]} Be1 {[%emt 0:00:37]} 48. Qe2 {[%emt 0:00:13]} Ba5 {[%emt 0:01:29]} 49. Nf3 {[%emt 0:01:16]} Bb6 {[%emt 0:00:08]} 50. Qb2 {[%emt 0:00:23]} Bc7 {[%emt 0:03:30]} 51. Qb7 {[%emt 0:00:07]} Kf6 {[%emt 0:01:39]} 52. Qc8 {[%emt 0:01:27]} Bb6 {[%emt 0:02:40]} 53. Qh8+ {[%emt 0:01:23]} Ke7 {[%emt 0:05:56]} 54. Qxh7+ {[%emt 0:02:21]} 1-0

[Event "69th RUS-ch Women Higher League 2019"]
[Site "Yaroslavl"]
[Date "2019.06.29"]
[Round "3.15"]
[White "Potapova, Margarita"]
[Black "Loskutova, Viktoriya"]
[Result "1-0"]
[ECO "E12"]
[WhiteElo "2256"]
[BlackElo "2019"]
[Annotator "NA"]
[PlyCount "123"]
[EventDate "2019.06.27"]
[EventType "swiss"]
[EventCountry "RUS"]
[SourceTitle "playchess.com"]
[Source "ChessBase"]
[SourceQuality "1"]
[TimeControl "40/5400+30:1800+30"]

1. d4 {[%emt 0:00:00]} Nf6 {[%emt 0:00:00]} 2. c4 {[%emt 0:00:00]} e6 {[%emt 0:00:00]} 3. Nf3 {[%emt 0:00:00]} b6 {[%emt 0:00:00]} 4. a3 {[%emt 0:01:40]} Bb7 {[%emt 0:00:00]} 5. Nc3 {[%emt 0:00:05]} d5 {[%emt 0:00:02]} 6. Bg5 {[%emt 0:02:21]} Be7 {[%emt 0:00:10]} 7. Qa4+ {[%emt 0:06:56]} c6 {[%emt 0:06:11]} 8. cxd5 {[%emt 0:02:15]} Nxd5 {[%emt 0:00:23]} 9. Bxe7 {[%emt 0:03:44]} Qxe7 {[%emt 0:00:18]} 10. Nxd5 {[%emt 0:06:08]} exd5 {[%emt 0:00:07]} 11. e3 {[%emt 0:00:05]} O-O {[%emt 0:01:06]} 12. Bd3 {[%emt 0:02:10]} Nd7 {[%emt 0:03:04]} 13. O-O {[%emt 0:01:52]} c5 {[%emt 0:09:29]} 14. dxc5 {[%emt 0:03:57]} bxc5 {[%emt 0:01:27]} 15. Rac1 {[%emt 0:09:48]} Nf6 {[%emt 0:16:47]} 16. Qa5 {[%emt 0:04:49]} Rfc8 {[%emt 0:03:43]} 17. Bf5 {[%emt 0:01:17]} Rc6 {[%emt 0:10:02]} 18. b4 {[%emt 0:02:49]} g6 {[%emt 0:09:02]} 19. Bb1 {[%emt 0:08:49]} c4 {[%emt 0:17:45]} 20. b5 {[%emt 0:01:35]} Rc5 {[%emt 0:04:36]} 21. Qb4 {[%emt 0:01:15]} Rc7 {[%emt 0:03:01]} 22. Qxe7 {[%emt 0:01:15]} Rxe7 {[%emt 0:00:01]} 23. Nd4 {[%emt 0:01:47]} a6 {[%emt 0:03:54]} 24. a4 {[%emt 0:00:27]} axb5 {[%emt 0:00:39]} 25. axb5 {[%emt 0:00:03]} Nd7 {[%emt 0:00:03]} 26. Bc2 {[%emt 0:01:03]} Nb6 {[%emt 0:00:21]} 27. Ra1 {[%emt 0:03:12]} Ree8 {[%emt 0:00:09]} 28. g4 {[%emt 0:00:43]} Kf8 {[%emt 0:05:58]} 29. Kg2 {[%emt 0:00:15]} Ke7 {[%emt 0:00:44]} 30. Kg3 {[%emt 0:00:33]} Kd6 {[%emt 0:01:03]} 31. Kf4 {[%emt 0:00:57]} f6 {[%emt 0:03:10]} 32. h4 {[%emt 0:00:15]} Nd7 {[%emt 0:00:24]} 33. h5 {[%emt 0:02:33]} Nf8 {[%emt 0:00:04]} 34. hxg6 {[%emt 0:05:08]} hxg6 {[%emt 0:00:38]} 35. Rxa8 {[%emt 0:02:27]} Rxa8 {[%emt 0:00:40]} 36. Rh1 {[%emt 0:00:53]} Ra2 {[%emt 0:01:50]} 37. f3 {[%emt 0:01:10]} Bc8 {[%emt 0:00:50]} 38. Rh8 {[%emt 0:02:18]} g5+ {[%emt 0:00:34]} 39. Kg3 {[%emt 0:00:07]} Ke7 {[%emt 0:00:05]} 40. Nc6+ {[%emt 0:00:00]} Kf7 {[%emt 0:00:00]} 41. Rh2 {[%emt 0:09:57]} Kg7 {[%emt 0:08:58]} 42. Nd4 {[%emt 0:12:05]} Ra8 {[%emt 0:14:49]} 43. Rh1 {[%emt 0:01:32]} Kf7 {[%emt 0:03:47]} 44. Rb1 {[%emt 0:06:40]} Ke7 {[%emt 0:01:52]} 45. Rh1 {[%emt 0:12:03]} Kd6 {[%emt 0:02:42]} 46. Rh6 {[%emt 0:02:19]} Ke7 {[%emt 0:00:04]} 47. Nc6+ {[%emt 0:02:19]} Kf7 {[%emt 0:00:06]} 48. e4 {[%emt 0:05:10]} dxe4 {[%emt 0:00:58]} 49. Bxe4 {[%emt 0:00:11]} Bb7 {[%emt 0:00:20]} 50. Rh1 {[%emt 0:01:08]} Bxc6 {[%emt 0:01:48]} 51. Bxc6 {[%emt 0:00:23]} Rc8 {[%emt 0:00:45]} 52. Rc1 {[%emt 0:00:35]} Ke7 {[%emt 0:00:23]} 53. Rxc4 {[%emt 0:00:11]} Nd7 {[%emt 0:00:51]} 54. Rb4 {[%emt 0:02:27]} Ne5 {[%emt 0:00:11]} 55. Be4 {[%emt 0:00:10]} Kd6 {[%emt 0:00:48]} 56. b6 {[%emt 0:00:37]} Rb8 {[%emt 0:00:25]} 57. b7 {[%emt 0:00:23]} Kc7 {[%emt 0:00:28]} 58. Rb1 {[%emt 0:00:36]} Nd7 {[%emt 0:00:24]} 59. Rc1+ {[%emt 0:00:14]} Kb6 {[%emt 0:00:41]} 60. Rc8 {[%emt 0:01:14]} Ka7 {[%emt 0:00:04]} 61. Rc7 {[%emt 0:00:49]} Rd8 {[%emt 0:00:49]} 62. Rc8 {[%emt 0:00:10]} 1-0